bitfinex/quotes_ETHUSD_20230109
["timestamp","ask_amount","ask_price","bid_price","bid_amount"]
[1673245855541,15.39107404,1311.6,1311.4,6.98914951]
[1673245855749,17.80351479,1311.6,1311.4,8.07024951]
[1673245856295,7.75801479,1311.6,1311.4,8.07024951]
[1673245857342,7.75801479,1311.6,1311.4,15.69558951]
[1673245860068,2.85842676,1311.5,1311.4,15.69558951]
[1673245862022,2.85842676,1311.5,1311.4,23.32101951]
[1673245863122,2.85842676,1311.5,1311.4,15.69558951]
[1673245867428,3.22465433,1311.5,1311.4,15.69558951]
[1673245867637,3.17465433,1311.5,1311.4,15.69558951]
[1673245869638,3.17066855,1311.5,1311.4,15.69558951]
[1673245871704,3.17066855,1311.5,1311.4,18.02771246]
[1673245871918,3.17066855,1311.5,1311.4,18.25771246]
[1673245872340,3.17066855,1311.5,1311.4,25.88314246]
[1673245876952,3.17066855,1311.5,1311.4,10.63237246]
[1673245877167,3.17066855,1311.5,1311.4,8.07024951]
[1673245881347,3.17066855,1311.5,1311.4,23.32110951]
[1673245881562,3.17066855,1311.5,1311.4,15.69567951]
[1673245883774,3.12066855,1311.5,1311.4,15.69567951]
[1673245885032,3.12066855,1311.5,1311.4,8.07024951]
[1673245885817,3.12066855,1311.5,1311.4,6.98914951]
[1673245888610,0.36622757,1311.5,1311.4,34.06151346]
[1673245889289,0.36622757,1311.5,1311.4,34.08125522]
[1673245889444,0.36622757,1311.5,1311.4,35.26325522]
[1673245889660,0.18551302,1311.6,1311.4,35.26325522]
[1673245889887,0.18551302,1311.6,1311.5,7.21914951]
[1673245890811,3.04360034,1311.6,1311.5,7.21914951]
[1673245891020,3.04360034,1311.6,1311.5,14.84399951]
[1673245893162,0.18551302,1311.6,1311.5,14.84399951]
[1673245893342,0.18551302,1311.6,1311.5,16.72356585]
[1673245893540,3.04360034,1311.6,1311.5,24.34841585]
[1673245893749,0.18551302,1311.6,1311.5,24.34841585]
[1673245895017,0.18551302,1311.6,1311.5,31.97326585]
[1673245895229,0.18551302,1311.6,1311.5,32.86526585]
[1673245895447,0.18551302,1311.6,1311.5,25.24041585]
[1673245895669,3.04912183,1311.8,1311.5,25.24041585]
[1673245895883,0.19103451,1311.8,1311.6,10.31344951]
[1673245896102,0.19103451,1311.8,1311.7,7.21914951]
[1673245896329,0.19103451,1311.8,1311.7,7.23600819]
[1673245896481,0.19103451,1311.8,1311.7,3.01685868]
[1673245896690,0.19103451,1311.8,1311.7,3.0]
[1673245897333,0.19103451,1311.8,1311.7,7.56878691]
[1673245897537,0.19103451,1311.8,1311.7,7.57150244]
[1673245900524,0.19103451,1311.8,1311.7,8.64210244]
[1673245901470,0.19103451,1311.8,1311.7,4.0706]
[1673245901848,0.19103451,1311.8,1311.7,1.0706]
[1673245903970,0.19103451,1311.8,1311.7,5.05974951]
[1673245904199,0.19103451,1311.8,1311.7,8.05974951]
[1673245911861,0.19103451,1311.8,1311.7,6.98914951]
[1673245916870,0.19103451,1311.8,1311.7,6.9869566]
[1673245917655,0.19103451,1311.8,1311.7,8.2139566]
[1673245920391,0.19103451,1311.8,1311.7,6.9869566]
[1673245923174,3.04912183,1311.8,1311.7,6.9869566]
[1673245923395,0.19103451,1311.8,1311.7,8.1803666]
[1673245925063,3.04912183,1311.8,1311.7,8.1803666]
[1673245927712,5.99681381,1311.8,1311.7,1.19341]
[1673245927919,21.24303381,1311.8,1311.7,1.19341]
[1673245928151,30.60414381,1311.8,1311.7,1.19341]
[1673245928478,15.35792381,1311.8,1311.7,1.19341]
[1673245928852,15.35792381,1311.8,1311.4,15.62532]
[1673245929063,2.85716699,1311.6,1311.5,3.98914951]
[1673245929569,2.85716699,1311.6,1311.5,3.0]
[1673245930148,3.31748369,1311.6,1311.5,3.0]
[1673245932140,2.85716699,1311.6,1311.5,3.0]
[1673245932608,4.61233382,1311.7,1311.5,3.0]
[1673245932980,8.61233382,1311.7,1311.5,3.0]
[1673245933190,2.85716699,1311.6,1311.5,3.0]
[1673245934272,9.37887683,1311.7,1311.5,4.23]
[1673245934273,12.23604382,1311.7,1311.5,4.23]
[1673245934469,16.46618401,1311.7,1311.5,1.23]
[1673245934678,2.85716699,1311.6,1311.5,1.23]
[1673245936022,16.46618401,1311.7,1311.5,1.23]
[1673245937519,2.85716699,1311.6,1311.5,1.23]
[1673245938372,16.46618401,1311.7,1311.5,1.23]
[1673245938761,8.84247401,1311.7,1311.5,1.23]
[1673245938974,8.84247401,1311.7,1311.5,1.22619003]
[1673245940053,8.84247401,1311.7,1311.4,3.0]
[1673245940274,8.84247401,1311.7,1311.4,6.98914951]
[1673245941284,16.46619401,1311.7,1311.4,6.98914951]
[1673245942131,8.84247401,1311.7,1311.4,6.98914951]
[1673245942666,16.46619401,1311.7,1311.4,6.98914951]
[1673245943535,8.84247401,1311.7,1311.4,6.98914951]
[1673245947080,8.83856935,1311.7,1311.4,6.98914951]
[1673245951959,2.85716699,1311.6,1311.4,6.98914951]
[1673245953397,4.60842916,1311.7,1311.4,6.98914951]
[1673245953812,8.83818488,1311.7,1311.4,6.98914951]
[1673245955229,2.85716699,1311.6,1311.4,6.98914951]
[1673245955909,8.83818488,1311.7,1311.4,6.98914951]
[1673245956341,2.85716699,1311.6,1311.4,6.98914951]
[1673245962427,0.43074,1311.5,1311.4,6.98914951]
[1673245966331,3.28790699,1311.5,1311.4,6.98914951]
[1673245967478,3.28790699,1311.5,1311.4,6.98710695]
[1673245968369,2.85716699,1311.5,1311.4,6.98710695]
[1673245974944,2.85716699,1311.5,1311.4,2.99795744]
[1673245979370,2.85716699,1311.5,1311.1,3.45255733]
[1673245979371,5.16006102,1311.5,1311.1,23.83588]
[1673245979788,4.60259399,1311.5,1311.4,0.761]
[1673245979929,6.34859399,1311.5,1311.4,0.761]
[1673245983293,2.3725228,1311.5,1311.4,0.761]
[1673245983508,5.8015877,1311.5,1311.4,0.761]
[1673245985191,5.8015877,1311.5,1311.3,1.0179]
[1673245985401,2.85626406,1311.4,1311.3,1.0179]
[1673245985610,4.12204924,1311.4,1311.3,1.0179]
[1673245987955,4.12204924,1311.4,1311.3,1.01422105]
[1673245989739,2.85626406,1311.4,1311.3,1.01422105]
[1673245990566,2.85626406,1311.4,1311.3,1.16927]
[1673245994047,5.22878686,1311.5,1311.2,3.0]
[1673245994429,9.22878686,1311.5,1311.2,3.0]
[1673245994637,2.85626406,1311.4,1311.2,3.0]
[1673245994847,3.77914275,1311.4,1311.2,3.0]
[1673245997082,0.92287869,1311.4,1311.2,3.0]
[1673245997615,0.92287869,1311.4,1311.1,26.86961951]
[1673245997826,3.77914275,1311.4,1311.1,26.86961951]
[1673245997986,0.92287869,1311.4,1311.1,26.86961951]
[1673246001921,0.92287869,1311.4,1311.2,1.125]
[1673246002296,3.77914275,1311.4,1311.2,1.125]
[1673246002506,0.92287869,1311.4,1311.2,4.125]
[1673246002982,3.77914275,1311.4,1311.2,4.125]
[1673246003162,0.92287869,1311.4,1311.2,4.125]
[1673246003382,3.77914275,1311.4,1311.2,4.125]
[1673246003798,0.92287869,1311.4,1311.2,4.125]
[1673246004558,3.77914275,1311.4,1311.2,4.125]
[1673246007658,3.77914275,1311.4,1311.2,3.87202]
[1673246009663,3.77914275,1311.4,1311.2,3.86910962]
[1673246012084,2.85626406,1311.3,1311.2,3.86910962]
[1673246013044,2.85626406,1311.3,1311.2,4.11281359]
[1673246018540,3.22681901,1311.3,1311.2,4.11281359]
[1673246018927,3.22681901,1311.3,1311.2,4.14830962]
[1673246024763,3.22681901,1311.3,1311.2,3.96187819]
[1673246025721,4.15929527,1311.3,1311.2,3.96187819]
[1673246028849,1.30303121,1311.3,1311.2,3.96187819]
[1673246029066,4.16401081,1311.3,1311.2,3.96187819]
[1673246029925,4.16401081,1311.3,1311.2,4.19161962]
[1673246034812,4.16401081,1311.3,1311.2,4.1893223]
[1673246035663,4.16401081,1311.3,1311.2,2.9947923]
[1673246035883,4.16401081,1311.3,1311.2,3.85897871]
[1673246036118,1.30303121,1311.3,1311.2,3.85897871]
[1673246036279,4.16338036,1311.3,1311.2,3.85897871]
[1673246036489,1.30303121,1311.3,1311.2,3.85897871]
[1673246038119,4.16328058,1311.3,1311.2,3.85897871]
[1673246038643,1.30303121,1311.3,1311.2,3.85897871]
[1673246039012,4.16327859,1311.3,1311.2,3.85897871]
[1673246040124,1.30303121,1311.3,1311.2,3.85897871]
[1673246040331,4.16326058,1311.3,1311.2,3.85897871]
[1673246041280,4.16326058,1311.3,1311.2,4.0547923]
[1673246042225,3.12934725,1311.3,1311.2,4.06]
[1673246042419,3.12934658,1311.3,1311.2,4.06]
[1673246042629,0.26901356,1311.3,1311.2,4.06]
[1673246042846,3.12934594,1311.3,1311.2,4.06]
[1673246043029,0.26901356,1311.3,1311.2,1.06]
[1673246043246,0.26901356,1311.3,1311.2,4.06]
[1673246043492,0.26901356,1311.3,1311.2,1.06]
[1673246044967,5.45007846,1311.3,1311.2,1.06]
[1673246045278,6.71585399,1311.3,1311.2,1.06]
[1673246047030,6.71585399,1311.3,1311.2,0.9474]
[1673246047490,7.81642039,1311.3,1311.2,0.9474]
[1673246047803,6.71963398,1311.3,1311.2,0.9474]
[1673246047954,6.71959403,1311.3,1311.2,0.9474]
[1673246052536,6.71959403,1311.3,1311.1,0.92037209]
[1673246052698,4.5939977,1311.2,1311.1,0.92037209]
[1673246052917,5.55015687,1311.2,1311.1,0.92037209]
[1673246054208,6.12396411,1311.2,1311.1,0.92037209]
[1673246054539,0.95615917,1311.2,1311.1,0.92037209]
[1673246055742,3.81456158,1311.2,1311.1,0.92037209]
[1673246057356,0.95615917,1311.2,1311.1,0.92037209]
[1673246057547,4.38896411,1311.2,1311.1,0.92037209]
[1673246058364,0.95615917,1311.2,1311.1,0.87971946]
[1673246060112,3.8139652,1311.2,1311.1,0.87971946]
[1673246062128,3.81381816,1311.2,1311.1,0.87971946]
[1673246062533,3.81381816,1311.2,1311.1,3.87971946]
[1673246063679,3.81381816,1311.2,1311.1,3.924]
[1673246064299,0.95615917,1311.2,1311.1,3.924]
[1673246064518,0.95615917,1311.2,1311.1,3.92035773]
[1673246064519,3.8136909,1311.2,1311.1,3.92035773]
[1673246069489,11.4402909,1311.2,1311.1,3.92035773]
[1673246069814,11.4402909,1311.2,1311.1,4.189]
[1673246070006,8.58275917,1311.2,1311.1,4.189]
[1673246070437,8.58275917,1311.2,1311.1,1.189]
[1673246070843,11.4407138,1311.2,1311.1,1.189]
[1673246071187,8.58275917,1311.2,1311.1,1.189]
[1673246071338,11.44084533,1311.2,1311.1,1.189]
[1673246071550,3.81424533,1311.2,1311.1,1.189]
[1673246072611,8.58275917,1311.2,1311.1,1.189]
[1673246072822,12.01556411,1311.2,1311.1,1.189]
[1673246073654,8.58275917,1311.2,1311.1,1.189]
[1673246074921,8.58275917,1311.2,1311.1,1.134]
[1673246077388,12.01556411,1311.2,1311.1,1.134]
[1673246078310,12.01556411,1311.2,1311.0,0.03080511]
[1673246078502,2.85887039,1311.1,1311.0,0.03080511]
[1673246078716,5.13638384,1311.1,1311.0,0.03080511]
[1673246081017,5.13638384,1311.1,1311.0,1.22668511]
[1673246081959,5.13638384,1311.1,1311.0,0.03080511]
[1673246085004,2.27751345,1311.1,1311.0,0.03080511]
[1673246085853,2.27751345,1311.1,1311.0,0.02863079]
[1673246086064,2.27751345,1311.1,1311.0,1.03373079]
[1673246086376,5.71031839,1311.1,1311.0,1.03373079]
[1673246087422,2.27751345,1311.1,1311.0,1.03373079]
[1673246087876,5.71031839,1311.1,1311.0,1.03373079]
[1673246088716,2.27751345,1311.1,1311.0,1.03373079]
[1673246089787,5.71031839,1311.1,1311.0,1.03373079]
[1673246092117,5.71031839,1311.1,1311.0,0.02863079]
[1673246092546,13.33749839,1311.1,1311.0,0.02863079]
[1673246094331,9.90469345,1311.1,1311.0,0.02863079]
[1673246094563,2.27751345,1311.1,1311.0,0.02863079]
[1673246097337,9.90469345,1311.1,1311.0,0.02863079]
[1673246097653,13.33749839,1311.1,1311.0,0.02863079]
[1673246099390,15.08949839,1311.1,1311.0,0.02863079]
[1673246100909,22.71667839,1311.1,1311.0,0.02863079]
[1673246101118,30.34385839,1311.1,1311.0,0.02863079]
[1673246102346,30.88712464,1311.1,1311.0,0.02863079]
[1673246102712,30.343539,1311.1,1311.0,0.02863079]
[1673246103159,22.716359,1311.1,1311.0,0.02863079]
[1673246103529,15.089179,1311.1,1311.0,0.02863079]
[1673246104051,7.461999,1311.1,1311.0,0.02863079]
[1673246107358,7.461999,1311.1,1311.0,0.0247686]
[1673246109666,5.709999,1311.1,1311.0,0.0247686]
[1673246112825,5.14734002,1311.1,1311.0,15.2802886]
[1673246113086,5.14734002,1311.1,1311.0,18.2802886]
[1673246113297,5.14734002,1311.1,1311.0,10.6525286]
[1673246114117,2.28766724,1311.1,1311.0,10.6525286]
[1673246114354,5.14734002,1311.1,1311.0,3.0247686]
[1673246114566,2.28766724,1311.1,1311.0,3.0247686]
[1673246115634,2.28766724,1311.1,1311.0,10.6525286]
[1673246115953,5.14734002,1311.1,1311.0,10.6525286]
[1673246116419,5.14734002,1311.1,1311.0,3.0247686]
[1673246118254,2.28766724,1311.1,1311.0,3.0247686]
[1673246118428,2.85967278,1311.1,1311.0,3.0247686]
[1673246118794,5.14687794,1311.1,1311.0,3.0247686]
[1673246126557,12.77405794,1311.1,1311.0,3.0247686]
[1673246126717,7.53021929,1311.1,1311.0,0.0247686]
[1673246126926,5.14687794,1311.1,1311.0,0.0247686]
[1673246130308,5.14687794,1311.1,1311.0,0.02136894]
[1673246130514,5.14687794,1311.1,1311.0,7.64912894]
[1673246130729,5.14687794,1311.1,1311.0,3.02136894]
[1673246131655,5.14687794,1311.1,1311.0,10.64912894]
[1673246133552,5.14687794,1311.1,1311.0,10.7679361]
[1673246134834,2.85967278,1311.1,1311.0,10.7679361]
[1673246135027,5.14650005,1311.1,1311.0,3.1401761]
[1673246135448,2.85967278,1311.1,1311.0,3.1401761]
[1673246135656,5.14648513,1311.1,1311.0,3.1401761]
[1673246135980,5.14648513,1311.1,1311.0,10.7679361]
[1673246138983,2.28681235,1311.1,1311.0,10.7679361]
[1673246139140,2.80146086,1311.1,1311.0,3.1401761]
[1673246139346,5.66111127,1311.1,1311.0,0.1401761]
[1673246139594,2.80143849,1311.1,1311.0,0.1401761]
[1673246139805,2.80143849,1311.1,1311.0,7.7679361]
[1673246140204,2.80143849,1311.1,1311.0,0.1401761]
[1673246140414,5.66111127,1311.1,1311.0,0.1401761]
[1673246142306,5.14646276,1311.1,1311.0,0.1401761]
[1673246143125,2.28678998,1311.1,1311.0,0.1401761]
[1673246143597,5.14646276,1311.1,1311.0,0.1401761]
[1673246143815,2.28678998,1311.1,1311.0,0.1401761]
[1673246144332,5.14646276,1311.1,1311.0,0.1401761]
[1673246145354,2.28678998,1311.1,1311.0,15.3956961]
[1673246146315,5.14646276,1311.1,1311.0,15.3956961]
[1673246148199,5.14800772,1311.1,1311.0,15.3956961]
[1673246148406,2.85967278,1311.1,1311.0,15.3956961]
[1673246151359,2.85967278,1311.1,1311.0,15.39323536]
[1673246156172,2.85967278,1311.1,1311.0,23.02099536]
[1673246157807,5.14891576,1311.1,1311.0,23.02099536]
[1673246158116,2.85967278,1311.1,1311.0,23.02099536]
[1673246158315,5.14887395,1311.1,1311.0,23.02099536]
[1673246159321,5.14887395,1311.1,1311.0,15.39323536]
[1673246163363,5.14887395,1311.1,1311.0,14.99323536]
[1673246164202,5.14887395,1311.1,1311.0,22.62099536]
[1673246164750,5.14887395,1311.1,1311.0,25.62099536]
[1673246164901,2.28920117,1311.1,1311.0,25.62099536]
[1673246165638,5.14887395,1311.2,1311.0,25.62099536]
[1673246170289,5.14887395,1311.2,1311.1,25.88154]
[1673246170465,2.28920117,1311.2,1311.1,25.88154]
[1673246170889,2.28920117,1311.2,1311.1,18.25436]
[1673246171355,5.14887395,1311.2,1311.1,18.25436]
[1673246171780,5.14887395,1311.2,1311.1,10.74373186]
[1673246183454,5.14887395,1311.2,1311.1,18.37091186]
[1673246186776,2.85967278,1311.2,1311.1,18.37091186]
[1673246186986,5.14719515,1311.2,1311.1,25.99809186]
[1673246187226,5.14719515,1311.2,1311.1,18.37091186]
[1673246188295,5.14719515,1311.2,1311.1,18.36819517]
[1673246188678,2.85967278,1311.2,1311.1,18.36819517]
[1673246189666,2.85967278,1311.2,1311.1,10.74101517]
[1673246192367,4.4960253,1311.2,1311.1,3.11383517]
[1673246192714,5.06883807,1311.2,1311.1,3.11383517]
[1673246192923,5.06883807,1311.2,1311.1,0.11655186]
[1673246194711,5.06883807,1311.2,1311.0,10.62767]
[1673246194869,5.1487274,1311.1,1311.0,10.62767]
[1673246195231,2.86040411,1311.1,1311.0,3.0]
[1673246195426,5.14872883,1311.1,1311.0,10.62776]
[1673246196865,2.28832472,1311.1,1311.0,25.88328]
[1673246197862,5.14872883,1311.2,1311.0,36.10162801]
[1673246203314,5.14872883,1311.2,1311.0,33.51104]
[1673246207110,5.14872883,1311.2,1311.0,25.88328]
[1673246207537,2.28832472,1311.1,1311.0,25.88328]
[1673246207842,5.14872883,1311.2,1311.0,25.88328]
[1673246208743,5.14872883,1311.2,1311.0,25.88109349]
[1673246209896,2.28832472,1311.1,1311.0,25.88109349]
[1673246210109,5.14872883,1311.2,1311.0,28.75550054]
[1673246210434,5.14872883,1311.2,1311.0,25.88109349]
[1673246213028,2.28832472,1311.2,1311.0,25.88109349]
[1673246214231,5.14872883,1311.2,1311.0,25.88109349]
[1673246214920,2.28832472,1311.2,1311.0,25.88109349]
[1673246215076,5.14872883,1311.2,1311.0,25.88109349]
[1673246215274,2.28832472,1311.2,1311.0,25.88109349]
[1673246217008,0.52199272,1311.1,1311.0,25.88109349]
[1673246218783,1e-08,1311.1,1311.0,27.77456728]
[1673246219164,1e-08,1311.1,1311.0,25.88109349]
[1673246219388,1e-08,1311.1,1311.0,27.77456718]
[1673246219598,1e-08,1311.1,1311.0,25.88109349]
[1673246220065,1e-08,1311.1,1311.0,28.86969627]
[1673246222281,2.28832472,1311.2,1311.1,0.00346505]
[1673246222442,2.28832472,1311.2,1311.1,7.63064505]
[1673246222658,2.28832472,1311.2,1311.1,10.63064505]
[1673246231910,2.28832472,1311.2,1311.1,18.25782505]
[1673246233123,2.28832472,1311.2,1311.1,10.63064505]
[1673246235390,5.14872883,1311.2,1311.1,10.63064505]
[1673246235596,2.86040411,1311.2,1311.1,10.63064505]
[1673246236900,2.86040411,1311.2,1311.1,3.00346505]
[1673246239764,2.86040411,1311.2,1311.1,3.96526505]
[1673246241799,2.86040411,1311.2,1311.1,11.59244505]
[1673246243816,5.14907202,1311.2,1311.1,11.59244505]
[1673246244180,2.86040411,1311.2,1311.1,11.59244505]
[1673246244600,5.14907556,1311.2,1311.1,11.59244505]
[1673246245350,5.14907556,1311.2,1311.1,11.92452963]
[1673246246283,5.14907556,1311.2,1311.1,11.92171257]
[1673246246720,2.86040411,1311.2,1311.1,11.92171257]
[1673246247071,4.49682976,1311.2,1311.1,11.92171257]
[1673246248598,4.49682976,1311.2,1311.1,4.29453257]
[1673246249967,4.49682976,1311.2,1311.1,11.92171257]
[1673246252061,6.78551513,1311.2,1311.1,11.92171257]
[1673246252272,4.49682976,1311.2,1311.1,11.92171257]
[1673246252915,6.78553864,1311.2,1311.1,11.92171257]
[1673246256480,6.78553864,1311.2,1311.1,10.62782799]
[1673246257218,5.14911299,1311.2,1311.1,10.62782799]
[1673246258945,5.14911299,1311.2,1311.1,10.62718]
[1673246261210,2.86040411,1311.2,1311.1,10.62718]
[1673246261988,2.86040411,1311.2,1311.1,3.0]
[1673246265656,2.86040411,1311.2,1311.1,10.62718]
[1673246266264,4.67032976,1311.2,1311.1,10.62718]
[1673246266695,4.67032976,1311.2,1311.1,3.0]
[1673246267213,4.67032976,1311.2,1311.1,10.62718]
[1673246268172,4.67032976,1311.2,1311.1,18.25436]
[1673246270568,4.67032976,1311.2,1311.1,18.25174329]
[1673246273396,4.67032976,1311.2,1311.1,19.51920262]
[1673246274026,5.2424112,1311.2,1311.1,19.51920262]
[1673246274288,5.2424112,1311.2,1311.1,11.89202262]
[1673246274662,1.80992565,1311.2,1311.1,11.89202262]
[1673246276124,5.2424112,1311.2,1311.1,11.89202262]
[1673246276338,1.80992565,1311.2,1311.1,11.89202262]
[1673246277600,4.67074717,1311.2,1311.1,11.89202262]
[1673246277812,4.67074655,1311.2,1311.1,11.89202262]
[1673246279100,4.67074655,1311.2,1311.1,10.62456329]
[1673246282170,4.44174655,1311.2,1311.1,10.62456329]
[1673246282751,4.44174655,1311.2,1311.1,18.25174329]
[1673246283842,4.44174655,1311.2,1311.1,10.62456329]
[1673246292488,1.58092565,1311.2,1311.1,10.62456329]
[1673246293275,4.44162303,1311.2,1311.1,10.62456329]
[1673246294482,1.58092565,1311.2,1311.1,10.62456329]
[1673246294858,4.44169793,1311.2,1311.1,18.25174329]
[1673246295093,4.44169793,1311.2,1311.1,10.62456329]
[1673246295422,2.86077228,1311.2,1311.1,10.62456329]
[1673246298236,15.25585238,1311.3,1311.1,10.62456329]
[1673246298443,2.86108018,1311.2,1311.1,10.62456329]
[1673246301506,2.86108018,1311.2,1311.1,11.60998329]
[1673246304166,2.86108018,1311.2,1311.1,11.60785477]
[1673246304475,0.80547326,1311.2,1311.1,3.98067477]
[1673246304864,4.23795881,1311.2,1311.1,3.98067477]
[1673246305718,0.80547326,1311.2,1311.1,3.98067477]
[1673246307296,0.80547326,1311.2,1311.1,4.45425477]
[1673246309178,0.80547326,1311.2,1311.1,3.75425477]
[1673246309831,4.23795881,1311.2,1311.1,3.75425477]
[1673246310060,0.80547326,1311.2,1311.1,3.75425477]
[1673246310383,5.19365238,1311.3,1311.1,3.75425477]
[1673246313003,5.19365238,1311.3,1311.1,2.29525477]
[1673246314307,5.19058481,1311.3,1311.1,2.29525477]
[1673246315200,3.43248555,1311.2,1311.1,2.29525477]
[1673246315721,7.6266,1311.2,1311.1,2.29525477]
[1673246315884,37.40297283,1311.2,1310.8,18.03510511]
[1673246316091,2.28945673,1310.9,1310.8,18.03510511]
[1673246316316,2.28945673,1310.9,1310.8,0.60350511]
[1673246316545,2.28945673,1310.9,1310.8,0.03080511]
[1673246317183,2.28945673,1310.9,1310.8,3.03080511]
[1673246317911,5.15127764,1311.0,1310.8,18.28864511]
[1673246318122,5.15127764,1311.1,1310.8,34.6734307]
[1673246318329,5.15127764,1311.1,1310.8,41.78295763]
[1673246318527,2.28945673,1311.1,1310.8,38.96376713]
[1673246318874,2.28945673,1311.1,1310.8,34.69505734]
[1673246319042,5.15127764,1311.1,1310.8,37.53559093]
[1673246320333,5.15127764,1311.1,1310.8,38.67754826]
[1673246320334,2.28945673,1311.1,1310.8,38.67754826]
[1673246323357,2.28945673,1311.1,1310.9,1.89363448]
[1673246323555,2.28945673,1311.1,1311.0,22.88328]
[1673246323766,2.28945673,1311.1,1311.0,25.88328]
[1673246334956,2.86182091,1311.2,1311.0,29.0889747]
[1673246335193,2.86182091,1311.3,1311.2,16.38925599]
[1673246335320,2.86182091,1311.3,1311.2,11.76265599]
[1673246335529,2.86182091,1311.3,1311.2,4.13605599]
[1673246335771,4.30067151,1311.3,1311.2,4.13605599]
[1673246340681,4.30067151,1311.3,1311.2,11.76265599]
[1673246346190,1.4388506,1311.3,1311.2,11.76265599]
[1673246346606,1.4388506,1311.3,1311.2,5.23905599]
[1673246346852,10.95432091,1311.4,1311.2,5.23905599]
[1673246347177,3.43418509,1311.5,1311.3,22.24116951]
[1673246347494,2.85702719,1311.7,1311.5,30.4994]
[1673246347700,3.0480617,1311.8,1311.6,18.24854]
[1673246347872,3.0480617,1311.8,1311.6,18.85006702]
[1673246348718,3.0480617,1311.8,1311.6,18.24854]
[1673246349182,0.19103451,1311.8,1311.6,18.24854]
[1673246349771,0.19103451,1311.8,1311.6,25.87281]
[1673246352302,0.19103451,1311.8,1311.7,1.43863507]
[1673246352780,0.19103451,1311.8,1311.7,24.30970507]
[1673246353100,0.19103451,1311.8,1311.7,27.30970507]
[1673246353679,0.19103451,1311.8,1311.7,19.68601507]
[1673246354725,0.19103451,1311.8,1311.7,4.43863507]
[1673246355379,0.19103451,1311.8,1311.7,12.06232507]
[1673246357819,0.19103451,1311.8,1311.7,19.68601507]
[1673246359841,0.19103451,1311.8,1311.7,4.43863507]
[1673246360704,0.19103451,1311.8,1311.7,12.06232507]
[1673246361370,0.19103451,1311.8,1311.7,4.43863507]
[1673246362452,0.19103451,1311.8,1311.7,12.06232507]
[1673246362973,0.19103451,1311.8,1311.7,19.68601507]
[1673246368223,0.19103451,1311.8,1311.7,12.06232507]
[1673246371116,0.19103451,1311.8,1311.7,27.30970507]
[1673246371529,0.19103451,1311.8,1311.7,19.68601507]
[1673246371856,0.19103451,1311.8,1311.7,27.30970507]
[1673246374407,4.51e-06,1311.8,1311.7,30.80073402]
[1673246374578,4.51e-06,1311.8,1311.7,41.04513479]
[1673246374792,0.17768047,1311.9,1311.8,22.87132549]
[1673246375049,0.93357641,1312.0,1311.8,25.87132549]
[1673246375264,0.93357641,1312.0,1311.8,26.71059727]
[1673246375458,0.93357641,1312.0,1311.9,25.86759]
[1673246380394,0.93357641,1312.0,1311.9,27.01759]
[1673246384222,0.93357641,1312.0,1311.9,4.15]
[1673246384753,0.93357641,1312.0,1311.9,11.77253]
[1673246390551,0.93357641,1312.0,1311.9,4.15]
[1673246391370,0.93357641,1312.0,1311.9,11.77253]
[1673246392422,0.93080778,1312.0,1311.9,11.77253]
[1673246396473,0.93080778,1312.0,1311.9,19.39506]
[1673246396719,0.93080778,1312.0,1311.9,22.27165508]
[1673246402346,0.93080778,1312.0,1311.9,19.39506]
[1673246402979,0.93080778,1312.0,1311.9,18.24506]
[1673246405763,0.93080778,1312.0,1311.9,18.05506]
[1673246410669,3.21416971,1312.0,1311.9,18.05506]
[1673246414572,3.21416971,1312.0,1311.9,25.67759]
[1673246414753,3.21416971,1312.0,1311.9,18.05506]
[1673246415316,0.93080778,1312.0,1311.9,18.05506]
[1673246417281,0.93080778,1312.0,1311.9,40.88479017]
[1673246417489,13.84082125,1312.2,1312.1,7.654252]
[1673246417745,5.60517965,1312.2,1312.1,10.654252]
[1673246418113,3.31895932,1312.2,1312.1,10.654252]
[1673246418779,3.31895932,1312.2,1312.1,18.275622]
[1673246418970,5.6046709,1312.2,1312.1,18.275622]
[1673246420378,3.31895932,1312.2,1312.1,27.14596074]
[1673246420588,2.74753304,1312.2,1312.1,27.14596074]
[1673246420954,0.46193213,1312.2,1312.1,27.14805909]
[1673246421927,2.74753304,1312.2,1312.1,27.14805909]
[1673246422140,0.46193213,1312.2,1312.1,27.14805909]
[1673246422955,2.74753304,1312.2,1312.1,27.14805909]
[1673246423164,0.46193213,1312.2,1312.1,3.032882]
[1673246423370,2.74753304,1312.2,1312.1,3.032882]
[1673246424985,2.74753304,1312.2,1312.1,10.654252]
[1673246424986,0.46193213,1312.2,1312.1,10.654252]
[1673246425510,0.46193213,1312.2,1312.1,11.717552]
[1673246431104,0.46193213,1312.2,1312.1,12.247252]
[1673246432885,0.46193213,1312.2,1312.1,12.54529388]
[1673246437808,0.46193213,1312.2,1312.1,12.54146743]
[1673246438929,0.46193213,1312.2,1312.1,27.78420743]
[1673246447706,0.46193213,1312.2,1312.1,26.19120743]
[1673246449205,0.46193213,1312.2,1312.1,26.16215188]
[1673246460661,2.74753304,1312.2,1312.1,26.16215188]
[1673246462552,2.74753304,1312.2,1312.1,26.16009959]
[1673246464670,2.74753304,1312.2,1312.1,27.25322006]
[1673246465238,0.46193213,1312.2,1312.1,27.25322006]
[1673246465598,0.45956552,1312.2,1312.1,27.25322006]
[1673246468231,2.74516643,1312.2,1312.1,27.25322006]
[1673246469856,0.45956552,1312.2,1312.1,27.25322006]
[1673246473309,0.45956552,1312.2,1312.1,31.24236957]
[1673246475697,0.45956552,1312.2,1312.1,34.27616113]
[1673246475943,0.21920253,1312.3,1312.2,0.45956552]
[1673246476150,0.21920253,1312.3,1312.2,29.20288926]
[1673246476316,0.21920253,1312.3,1312.2,30.32874726]
[1673246477371,0.21920253,1312.3,1312.2,33.96248723]
[1673246478521,0.21920253,1312.3,1312.2,22.70796726]
[1673246478784,2.50480344,1312.3,1312.2,22.70796726]
[1673246479014,0.21920253,1312.3,1312.2,22.76131177]
[1673246479536,2.50480344,1312.3,1312.2,22.76131177]
[1673246481504,2.50480344,1312.3,1312.2,24.34413767]
[1673246483571,2.50480344,1312.3,1312.2,16.72335767]
[1673246486649,2.50480344,1312.3,1312.2,5.09573593]
[1673246486869,5.36183063,1312.3,1312.2,5.09573593]
[1673246487077,3.07622972,1312.3,1312.2,2.09573593]
[1673246487407,5.36213367,1312.3,1312.2,5.09573593]
[1673246487781,5.36213367,1312.3,1312.2,20.33729593]
[1673246487991,2.50510648,1312.3,1312.2,20.33729593]
[1673246488202,5.36213367,1312.3,1312.2,20.33729593]
[1673246490344,2.50510648,1312.3,1312.2,27.95807593]
[1673246494547,2.50510648,1312.3,1312.2,20.33729593]
[1673246494921,5.36213367,1312.3,1312.2,20.33729593]
[1673246496016,5.91874852,1312.3,1312.2,5.09573593]
[1673246496233,5.91874852,1312.3,1312.2,2.09573593]
[1673246496234,25.69051661,1312.3,1312.2,2.09573593]
[1673246496552,18.07031661,1312.3,1312.2,1.71560293]
[1673246497159,22.07031661,1312.3,1312.2,1.71560293]